bitfinex-derivatives/quotes_SOLF0:USTF0_20250111
["timestamp","ask_amount","ask_price","bid_price","bid_amount"]
[1736575284819,7.20842108,186.59,186.51,7.20842108]
[1736575285018,7.20842108,186.59,186.52,4.51676947]
[1736575285215,7.20842108,186.59,186.53,11.72599682]
[1736575285419,7.20842108,186.59,186.53,7.20842108]
[1736575286118,2.6809,186.55,186.53,7.20842108]
[1736575288623,2.6809,186.55,186.54,4.51978992]
[1736575288925,2.6809,186.55,186.53,7.20842108]
[1736575289519,2.6809,186.55,186.54,4.51907737]
[1736575293132,2.6805,186.58,186.53,7.20842108]
[1736575293433,7.20842108,186.57,186.51,7.20842108]
[1736575293728,7.20842108,186.57,186.52,4.51918609]
[1736575293933,7.20842108,186.57,186.53,4.51918609]
[1736575294234,7.20842108,186.57,186.51,7.20842108]
[1736575294434,2.6811,186.54,186.52,4.51944298]
[1736575294632,2.6811,186.54,186.53,4.51944298]
[1736575294934,7.20842108,186.57,186.51,7.20842108]
[1736575295124,7.20842108,186.57,186.52,4.51999475]
[1736575295327,7.20842108,186.57,186.51,7.20842108]
[1736575295626,7.20842108,186.53,186.47,14.63771766]
[1736575295827,2.6819,186.48,186.47,14.63771766]
[1736575296140,2.6819,186.48,186.47,7.42929658]
[1736575296325,7.20842108,186.51,186.45,7.20842108]
[1736575296633,2.682,186.47,186.45,7.20842108]
[1736575296831,2.682,186.47,186.43,7.42929658]
[1736575297028,2.6824,186.44,186.43,7.42929658]
[1736575297232,2.6824,186.44,186.42,7.20842108]
[1736575297739,8.76722108,186.49,186.42,7.20842108]
[1736575297938,2.6823,186.46,186.42,7.20842108]
[1736575298133,2.6823,186.46,186.39,29.62101373]
[1736575298341,2.6823,186.46,186.44,7.20842108]
[1736575299527,2.6818,186.49,186.44,7.20842108]
[1736575299728,10.37802108,186.55,186.47,7.20842108]
[1736575299935,10.37802108,186.55,186.49,7.20842108]
[1736575300135,2.6813,186.52,186.49,7.20842108]
[1736575300539,2.6813,186.52,186.46,2.682]
[1736575300740,10.37802108,186.55,186.48,7.20842108]
[1736575300741,2.6815,186.51,186.48,7.20842108]
[1736575301333,10.37802108,186.55,186.48,7.20842108]
[1736575301535,2.6812,186.53,186.48,7.20842108]
[1736575302340,2.6812,186.53,186.5,7.20842108]
[1736575302537,2.681,186.54,186.52,7.20842108]
[1736575302935,10.33232108,186.59,186.52,7.20842108]
[1736575303941,2.6806,186.57,186.52,7.20842108]
[1736575304235,10.33232108,186.59,186.52,7.20842108]
[1736575306343,2.6809,186.55,186.52,7.20842108]
[1736575306638,10.33232108,186.59,186.5,7.20842108]
[1736575306639,2.6811,186.54,186.5,7.20842108]
[1736575306843,7.20842108,186.55,186.45,29.62101373]
[1736575307047,7.20842108,186.55,186.45,35.10101373]
[1736575307238,7.20842108,186.55,186.46,8.34500607]
[1736575307535,11.18562956,186.57,186.46,8.34500607]
[1736575307737,11.18562956,186.57,186.47,4.4415843]
[1736575307936,2.6815,186.51,186.48,4.4415843]
[1736575308140,2.6815,186.51,186.46,2.682]
[1736575308338,2.6815,186.51,186.47,4.44144599]
[1736575308542,2.6815,186.51,186.48,4.44144599]
[1736575308742,2.6815,186.51,186.46,2.682]
[1736575308944,11.18562956,186.57,186.47,4.441432]
[1736575309143,2.6813,186.53,186.48,4.441432]
[1736575309345,2.6813,186.53,186.49,4.4408693]
[1736575309542,2.6813,186.53,186.47,2.682]
[1736575309843,2.6813,186.53,186.48,4.44087679]
[1736575310137,2.6813,186.53,186.49,4.44087679]
[1736575310338,2.6813,186.53,186.47,2.682]
[1736575310539,2.6813,186.53,186.48,4.44153331]
[1736575310735,11.18562956,186.57,186.45,8.1622]
[1736575310935,11.18562956,186.57,186.46,10.10512285]
[1736575311245,11.18562956,186.54,186.47,4.44190388]
[1736575311442,1.5179,186.53,186.46,5.66321897]
[1736575311645,2.6817,186.5,186.47,4.44179277]
[1736575311840,2.6817,186.5,186.44,11.18562956]
[1736575312041,2.6817,186.5,186.45,10.105547]
[1736575312242,2.6817,186.5,186.46,4.44203834]
[1736575312444,2.6817,186.5,186.47,4.44203834]
[1736575312645,2.6817,186.5,186.44,11.18562956]
[1736575312841,2.6817,186.5,186.45,4.44158934]
[1736575313041,2.6817,186.5,186.46,4.44158934]
[1736575313247,2.6817,186.5,186.44,13.86802956]
[1736575313450,2.6817,186.5,186.45,4.44207182]
[1736575313647,1.5179,186.53,186.44,11.18562956]
[1736575313844,2.6819,186.49,186.45,4.44186692]
[1736575314144,2.6819,186.49,186.44,11.18562956]
[1736575314346,2.6819,186.49,186.45,4.44141654]
[1736575314543,2.6819,186.49,186.44,13.86802956]
[1736575314745,2.6819,186.49,186.45,4.44135663]
[1736575314945,2.6819,186.49,186.44,13.86802956]
[1736575315138,2.6819,186.49,186.44,2.6824]
[1736575315538,2.6816,186.5,186.45,7.12300615]
[1736575315749,2.6816,186.5,186.45,2.6823]
[1736575316547,3.1497,186.52,186.46,4.44161811]
[1736575316849,1.5179,186.53,186.47,4.44103656]
[1736575317045,11.18562956,186.57,186.48,4.44103656]
[1736575317239,11.18562956,186.57,186.44,11.18562956]
[1736575317444,11.18562956,186.57,186.45,4.43995446]
[1736575317650,11.18562956,186.57,186.46,4.43995446]
[1736575317948,11.18562956,186.57,186.47,10.09924825]
[1736575318148,2.6812,186.54,186.49,2.6816]
[1736575321248,2.6808,186.56,186.5,2.6814]
[1736575321452,16.10672956,186.6,186.51,4.43646604]
[1736575321648,16.10672956,186.6,186.47,11.18562956]
[1736575321853,2.6806,186.58,186.52,2.6812]
[1736575322553,2.6806,186.57,186.52,2.6812]
[1736575324751,2.6806,186.57,186.51,2.6814]
[1736575325350,2.6807,186.56,186.51,2.6814]
[1736575327257,2.6807,186.56,186.52,4.43734958]
[1736575327556,2.6807,186.56,186.51,9.83685991]
[1736575328257,2.6807,186.56,186.52,4.43827959]
[1736575328471,2.6807,186.56,186.51,9.83685991]
[1736575328651,2.6807,186.56,186.52,4.43824718]
[1736575328853,2.6807,186.56,186.51,9.83685991]
[1736575329060,2.6807,186.56,186.52,4.43807825]
[1736575329257,2.6807,186.56,186.51,9.83685991]
[1736575329456,2.6807,186.56,186.52,4.43851976]
[1736575329656,2.6807,186.56,186.51,9.83685991]
[1736575329956,2.6807,186.56,186.52,4.43868459]
[1736575330157,2.6807,186.56,186.51,9.83685991]
[1736575330350,2.6807,186.56,186.52,4.43869677]
[1736575330549,2.6807,186.56,186.51,9.83685991]
[1736575330757,2.6807,186.56,186.52,4.4383344]
[1736575330958,2.6807,186.56,186.51,9.83685991]
[1736575331158,2.6807,186.56,186.52,4.43825841]
[1736575331358,2.6807,186.56,186.51,9.83685991]
[1736575331558,2.6807,186.56,186.52,4.43827266]
[1736575331859,2.6807,186.56,186.51,9.83685991]
[1736575332256,2.6807,186.56,186.52,4.43853275]
[1736575332459,2.6807,186.56,186.51,9.83685991]
[1736575332858,2.6807,186.56,186.52,4.43842214]
[1736575333057,2.6807,186.56,186.51,9.83685991]
[1736575333256,2.6807,186.56,186.52,4.43835179]
[1736575333458,2.6807,186.56,186.51,9.83685991]
[1736575333761,2.6807,186.56,186.52,4.43836804]
[1736575334058,2.6807,186.56,186.51,9.83685991]
[1736575337966,2.681,186.55,186.5,2.6816]
[1736575338466,7.15545991,186.56,186.51,4.44037215]
[1736575338665,7.15545991,186.56,186.49,7.15545991]
[1736575338666,2.6811,186.54,186.49,9.83705991]
[1736575338966,2.6811,186.54,186.5,4.44009169]
[1736575339168,2.6811,186.54,186.51,4.44009169]
[1736575339369,2.6811,186.54,186.49,9.83705991]
[1736575339562,7.15545991,186.56,186.47,5.44]
[1736575339563,7.15545991,186.56,186.51,7.15545991]
[1736575339764,7.15545991,186.56,186.52,4.43925313]
[1736575339964,7.15545991,186.56,186.51,9.83685991]
[1736575341165,7.15545991,186.58,186.51,7.15545991]
[1736575341369,7.15545991,186.58,186.52,7.11970009]
[1736575341569,7.15545991,186.58,186.53,4.43840009]
[1736575341863,7.15545991,186.58,186.52,2.6813]
[1736575342071,7.15545991,186.58,186.53,4.43722309]
[1736575342268,7.15545991,186.58,186.54,4.43806223]
[1736575342471,7.15545991,186.58,186.52,2.6813]
[1736575342666,7.15545991,186.58,186.53,4.43800908]
[1736575342967,12.07655991,186.6,186.53,7.15545991]
[1736575343172,2.6804,186.59,186.54,4.43816618]
[1736575343367,2.6804,186.59,186.55,4.43816618]
[1736575343567,2.6804,186.59,186.53,7.15545991]
[1736575343769,2.6804,186.59,186.54,7.11974278]
[1736575343971,12.07655991,186.6,186.55,4.43856736]
[1736575344170,2.6804,186.58,186.54,2.681]
[1736575344366,2.6804,186.58,186.55,4.43948774]
[1736575344671,2.6804,186.58,186.54,2.681]
[1736575344873,4.2461,186.6,186.55,7.11965458]
[1736575345067,2.6803,186.6,186.56,4.43895458]
[1736575345268,2.6803,186.6,186.55,7.15545991]
[1736575345467,2.6803,186.6,186.56,4.43780198]
[1736575345766,3.2275,186.66,186.57,11.59306396]
[1736575345967,3.2275,186.66,186.59,7.15545991]
[1736575346173,3.2275,186.66,186.61,7.15545991]
[1736575346477,4.3332,186.67,186.62,2.6798]
[1736575346771,4.3332,186.67,186.61,7.15545991]
[1736575346973,11.48865991,186.67,186.61,7.15545991]
[1736575347171,8.80945991,186.67,186.61,7.15545991]
[1736575347476,2.6794,186.66,186.61,7.15545991]
[1736575349581,2.6794,186.66,186.61,9.83545991]
[1736575352480,2.6794,186.66,186.61,7.15545991]
[1736575353281,2.6794,186.66,186.61,9.83545991]
[1736575358283,2.6795,186.65,186.61,7.15545991]
[1736575359181,7.15545991,186.63,186.57,7.15545991]
[1736575359381,7.15545991,186.59,186.54,7.42929658]
[1736575359783,7.15545991,186.59,186.53,7.42929658]
[1736575360182,7.15545991,186.55,186.53,7.42929658]
[1736575360585,9.83635991,186.55,186.53,7.42929658]
[1736575360784,9.83635991,186.55,186.49,15.25715991]
[1736575361277,9.83635991,186.55,186.49,9.83715991]
[1736575362286,9.83635991,186.55,186.5,7.1075315]
[1736575362487,9.83635991,186.55,186.5,2.6816]
[1736575364491,2.6814,186.52,186.45,3.2524]
[1736575364687,7.15545991,186.53,186.46,4.4276696]
[1736575364987,7.15545991,186.51,186.45,7.15545991]
[1736575365187,7.15545991,186.51,186.46,4.42800831]
[1736575365383,7.15545991,186.51,186.45,7.15545991]
[1736575365780,2.6816,186.5,186.45,7.15545991]
[1736575366085,7.15545991,186.51,186.45,7.15545991]
[1736575366283,2.6814,186.51,186.46,7.10935168]
[1736575366487,7.15545991,186.53,186.47,7.15545991]
[1736575367686,2.6814,186.52,186.47,7.15545991]
[1736575370795,2.6815,186.51,186.47,7.15545991]
[1736575373088,7.15545991,186.49,186.41,52.06658704]
[1736575373284,2.682,186.47,186.42,11.58032061]
[1736575373588,2.682,186.47,186.42,9.83815991]
[1736575373789,7.15545991,186.47,186.39,29.62101373]
[1736575373998,7.15545991,186.45,186.4,4.42582259]
[1736575374289,4.8838,186.48,186.39,29.62101373]
[1736575374290,7.15545991,186.43,186.39,29.62101373]
[1736575374493,7.15545991,186.43,186.37,7.15545991]
[1736575375288,2.683,186.41,186.36,29.62101373]
[1736575375691,2.683,186.41,186.35,12.59545991]
[1736575376090,2.683,186.41,186.35,15.27915991]
[1736575377092,2.683,186.41,186.35,9.83915991]
[1736575378991,4.8838,186.48,186.37,7.15545991]
[1736575379193,4.8838,186.48,186.39,7.15545991]
[1736575379499,7.15545991,186.46,186.39,7.15545991]
[1736575380589,7.15545991,186.44,186.39,7.15545991]
[1736575380795,2.6827,186.43,186.39,7.15545991]
[1736575385289,2.6827,186.42,186.37,9.83885991]
[1736575385494,7.15545991,186.42,186.36,12.59545991]
[1736575385695,7.15545991,186.42,186.36,7.15545991]
[1736575387092,2.6832,186.4,186.36,7.15545991]
[1736575388193,4.8838,186.48,186.36,7.15545991]
[1736575388395,9.83805991,186.44,186.38,9.83875991]
[1736575388591,7.15545991,186.44,186.38,9.83875991]
[1736575390198,2.6826,186.43,186.38,9.83875991]
[1736575392397,2.6824,186.45,186.4,7.15545991]
[1736575393000,7.15545991,186.47,186.4,7.15545991]
[1736575393201,2.6825,186.44,186.4,9.83845991]
[1736575397201,3.2196,186.48,186.42,7.15545991]
[1736575397396,2.682,186.47,186.42,9.83815991]
[1736575400804,2.682,186.47,186.42,17.26745649]
[1736575401805,2.682,186.47,186.42,9.83815991]
[1736575404207,2.682,186.47,186.43,4.43545733]
[1736575404409,2.682,186.47,186.42,17.26745649]
[1736575404608,2.682,186.47,186.43,4.43963354]
[1736575404802,2.682,186.47,186.42,17.26745649]
[1736575405004,2.682,186.47,186.43,4.43969554]
[1736575405309,1.5225,186.55,186.44,7.15545991]
[1736575405507,7.15545991,186.51,186.45,4.44087188]
[1736575405809,7.15545991,186.51,186.46,4.44087188]
[1736575406005,2.6817,186.49,186.45,2.6822]
[1736575406312,2.6817,186.49,186.46,4.44017277]
[1736575406510,2.6817,186.49,186.45,2.6822]
[1736575406812,2.6817,186.49,186.46,4.44082119]
[1736575407113,2.6817,186.49,186.45,10.11149658]
[1736575407411,2.6817,186.49,186.46,4.44229743]
[1736575407602,2.6817,186.49,186.47,4.44229743]
[1736575407911,2.6817,186.49,186.45,10.11149658]
[1736575408110,2.6817,186.49,186.46,4.44218564]
[1736575408308,2.6817,186.49,186.45,2.6822]
[1736575408514,2.6817,186.49,186.46,4.44335871]
[1736575408708,2.6817,186.49,186.47,4.44306988]
[1736575409014,2.6817,186.49,186.45,2.6822]
[1736575409015,1.5225,186.55,186.46,7.15545991]
[1736575409214,7.15545991,186.53,186.48,7.15545991]
[1736575409411,7.15545991,186.53,186.49,4.44239061]
[1736575409713,7.15545991,186.53,186.48,7.15545991]
[1736575409915,7.15545991,186.53,186.49,4.44271158]
[1736575410115,7.15545991,186.53,186.48,7.15545991]
[1736575410417,2.6814,186.52,186.49,4.44285563]
[1736575410616,2.6814,186.52,186.48,7.15545991]
[1736575410814,2.6815,186.51,186.49,4.44224436]
[1736575411013,2.6815,186.51,186.48,7.15545991]
[1736575411215,2.6815,186.51,186.49,4.44239288]
[1736575411513,2.6815,186.51,186.48,7.15545991]
[1736575413413,2.6815,186.51,186.47,2.682]
[1736575413618,2.6815,186.51,186.48,4.4420039]
[1736575413817,2.6815,186.51,186.47,2.682]
[1736575414120,2.6815,186.51,186.48,4.44174743]
[1736575414418,2.6815,186.51,186.47,2.682]
[1736575414619,2.6815,186.51,186.48,4.44165418]
[1736575414811,2.6815,186.51,186.47,2.682]
[1736575415017,2.6815,186.51,186.48,4.44203203]
[1736575415315,2.6815,186.51,186.47,2.682]
[1736575415616,2.6815,186.51,186.48,4.44156295]
[1736575415818,2.6815,186.51,186.47,2.682]
[1736575416018,2.6815,186.51,186.48,4.44141101]
[1736575416218,7.15545991,186.51,186.44,9.83775991]
[1736575416421,7.15545991,186.51,186.45,4.44246117]
[1736575416619,7.15545991,186.49,186.46,4.44246117]
[1736575416816,7.15545991,186.49,186.43,29.62101373]
[1736575417013,7.15545991,186.49,186.44,4.44334427]
[1736575417210,7.15545991,186.49,186.45,4.44334427]
[1736575417409,2.6823,186.46,186.43,7.42929658]
[1736575417610,2.6823,186.46,186.44,4.44410888]
[1736575417814,2.6823,186.46,186.43,7.42929658]
[1736575418015,2.6823,186.46,186.44,4.44495178]
[1736575418319,2.6823,186.46,186.43,7.42929658]
[1736575418615,2.6823,186.46,186.44,4.44516894]
[1736575418819,2.6823,186.46,186.42,29.62101373]
[1736575419020,2.6823,186.46,186.43,4.44566321]
[1736575419221,2.6823,186.45,186.44,4.44566321]
[1736575419719,2.6823,186.45,186.44,4.44585823]
[1736575420118,2.6823,186.45,186.41,9.83835991]
[1736575420321,2.6823,186.45,186.42,4.446237]
[1736575420622,7.15545991,186.47,186.43,4.446237]
[1736575420822,7.15545991,186.47,186.4,7.15545991]
[1736575421014,7.15545991,186.47,186.41,4.44707072]
[1736575421219,7.15545991,186.47,186.42,4.44707072]
[1736575421519,7.15545991,186.45,186.43,4.44707072]
[1736575421720,2.6827,186.43,186.38,232.99861658]
[1736575421917,7.15545991,186.43,186.39,4.44960991]
[1736575422113,7.15545991,186.43,186.4,4.44960991]
[1736575422318,7.15545991,186.43,186.38,223.15985667]
[1736575422319,2.6831,186.4,186.38,223.15985667]
[1736575422517,2.6831,186.4,186.39,4.45040588]
[1736575423924,2.6831,186.4,186.39,4.4511722]
[1736575425223,7.15545991,186.41,186.39,4.45027592]
[1736575425424,9.83835991,186.41,186.4,4.45027592]
[1736575425826,9.83835991,186.41,186.38,223.15985667]
[1736575426021,9.83835991,186.41,186.39,4.45000733]
[1736575426227,9.83835991,186.41,186.4,4.45021463]
[1736575426530,7.15545991,186.44,186.4,4.44972434]
[1736575426722,7.15545991,186.44,186.41,4.44972434]
[1736575426923,2.6827,186.43,186.38,223.15985667]
[1736575427123,7.15545991,186.44,186.39,4.44967926]
[1736575427417,9.32545991,186.44,186.4,4.44967926]
[1736575427626,9.32545991,186.44,186.41,4.44967926]
[1736575427816,9.32545991,186.44,186.38,223.15985667]
[1736575428020,9.32545991,186.44,186.39,4.44925531]
[1736575428224,9.32545991,186.44,186.38,223.15985667]
[1736575428527,9.32545991,186.44,186.39,10.07351681]
[1736575428720,9.32545991,186.44,186.4,4.44926527]
[1736575429031,9.32545991,186.44,186.41,4.44926527]
[1736575429226,2.6827,186.42,186.37,9.83885991]
[1736575429426,2.6827,186.42,186.38,4.44875399]
[1736575429622,2.6827,186.42,186.39,4.44875399]
[1736575429822,2.6827,186.42,186.4,4.44875399]
[1736575430026,2.6827,186.42,186.41,4.44875399]
[1736575430422,2.6827,186.42,186.41,4.45122322]
[1736575432327,2.6827,186.42,186.37,9.83885991]
[1736575432523,2.6827,186.42,186.38,4.45326294]
[1736575432832,2.6827,186.42,186.39,4.45326294]
[1736575433030,2.6827,186.42,186.4,4.45301853]
[1736575433326,2.6827,186.42,186.38,5.62916776]
[1736575433528,9.32545991,186.44,186.39,4.45310963]
[1736575433721,9.32545991,186.44,186.4,4.45310963]
[1736575433925,9.32545991,186.44,186.37,7.15545991]
[1736575434124,9.32545991,186.44,186.38,4.45324769]
[1736575434327,2.6829,186.41,186.39,4.45324769]
[1736575434530,2.6829,186.41,186.4,4.45324769]
[1736575434726,2.6829,186.41,186.4,4.45328042]
[1736575436832,2.6829,186.41,186.4,4.45305458]
[1736575439334,2.6829,186.41,186.37,7.15545991]
[1736575439534,2.6829,186.41,186.38,10.07490439]
[1736575439835,2.6829,186.41,186.39,4.44986774]
[1736575440036,2.6829,186.41,186.4,4.44986774]
[1736575441933,2.6829,186.41,186.37,7.15545991]
[1736575442236,2.6829,186.41,186.38,4.44933964]
[1736575442431,2.6829,186.41,186.39,4.44933964]
[1736575442632,2.6829,186.41,186.4,4.44873675]
[1736575442833,9.32545991,186.44,186.4,4.44873675]
[1736575443032,2.17,186.44,186.41,11.60346527]
[1736575443234,2.17,186.44,186.43,7.15545991]
[1736575443435,7.15545991,186.5,186.43,11.60270496]
[1736575443627,7.15545991,186.5,186.44,4.44724505]
[1736575443830,7.15545991,186.5,186.43,7.15545991]
[1736575444031,7.15545991,186.5,186.44,4.44567142]
[1736575444231,7.15545991,186.5,186.45,4.44567142]
[1736575444432,7.15545991,186.5,186.43,7.15545991]
[1736575444739,7.15545991,186.5,186.44,4.44527939]
[1736575444938,7.15545991,186.5,186.45,4.44527939]
[1736575445238,2.6819,186.48,186.43,9.83805991]
[1736575445438,7.15545991,186.5,186.44,4.44577207]
[1736575445634,7.15545991,186.5,186.45,4.44577207]
[1736575445835,2.682,186.48,186.43,7.15545991]
[1736575446137,2.682,186.48,186.44,4.44633754]
[1736575446331,2.682,186.48,186.43,7.15545991]
[1736575446530,2.682,186.48,186.44,4.44635579]
[1736575446832,2.682,186.48,186.43,7.15545991]
[1736575447028,2.682,186.48,186.44,4.44609549]
[1736575447229,2.682,186.48,186.43,7.15545991]
[1736575447430,2.682,186.48,186.44,4.44632534]
[1736575447631,2.682,186.48,186.43,7.15545991]
[1736575447831,2.682,186.48,186.44,4.44619484]
[1736575448034,2.682,186.48,186.43,7.15545991]
[1736575448230,2.682,186.48,186.44,4.44641703]
[1736575448431,2.682,186.47,186.43,7.15545991]
[1736575448639,2.682,186.47,186.44,4.44612503]
[1736575448840,2.682,186.47,186.43,7.15545991]
[1736575449040,2.682,186.47,186.44,4.44594936]
[1736575449241,2.682,186.47,186.43,7.15545991]
[1736575449442,2.682,186.47,186.44,4.44594066]
[1736575449742,2.682,186.47,186.43,7.15545991]
[1736575449939,2.682,186.47,186.44,4.44603063]
[1736575450140,2.682,186.47,186.43,7.15545991]
[1736575450339,2.682,186.47,186.44,4.44640406]
[1736575450532,2.682,186.47,186.43,7.15545991]
[1736575450736,6.2696565,186.52,186.45,7.15545991]
[1736575450941,6.2696565,186.52,186.46,4.44608166]
[1736575451144,6.2696565,186.52,186.47,4.44608166]
[1736575451442,6.2696565,186.52,186.45,7.15545991]
[1736575451643,6.2696565,186.52,186.46,4.44392407]
[1736575451842,6.2696565,186.52,186.47,4.44392407]
[1736575452043,6.2696565,186.52,186.45,7.15545991]
[1736575452242,2.6815,186.51,186.46,7.12562021]
[1736575452541,2.6815,186.51,186.47,4.44352021]
[1736575452741,2.6815,186.51,186.46,2.6821]
[1736575452945,2.6815,186.51,186.47,4.44339105]
[1736575453241,2.6815,186.51,186.48,4.44295361]
[1736575453441,2.6815,186.51,186.46,2.6821]
[1736575453642,7.15545991,186.51,186.47,4.44285852]
[1736575453943,2.6818,186.49,186.45,7.15545991]
[1736575454143,2.6818,186.49,186.46,4.44367422]
[1736575454444,7.15545991,186.49,186.43,12.75492531]
[1736575454645,7.15545991,186.47,186.44,4.44420738]
[1736575454839,7.15545991,186.47,186.42,7.15545991]
[1736575455041,7.15545991,186.47,186.43,4.44541207]
[1736575455241,9.83745991,186.47,186.44,4.44541207]
[1736575455444,9.83745991,186.47,186.42,9.83815991]
[1736575455744,9.83745991,186.47,186.43,4.44576755]
[1736575455944,9.83745991,186.47,186.44,4.44576755]
[1736575456141,9.83745991,186.47,186.42,9.83815991]
[1736575456345,9.83745991,186.47,186.43,4.44605847]
[1736575456644,9.83745991,186.47,186.44,4.44605847]
[1736575456838,9.83745991,186.47,186.42,9.83815991]
[1736575457034,9.83745991,186.47,186.43,4.44642715]
[1736575457240,9.83745991,186.47,186.44,4.44642715]
[1736575457445,9.83745991,186.47,186.45,4.44745115]
[1736575457646,9.83745991,186.47,186.42,9.83815991]
[1736575457844,9.83745991,186.47,186.43,4.44806339]
[1736575458040,9.83745991,186.47,186.44,4.44806339]
[1736575458345,9.83745991,186.47,186.42,9.83815991]
[1736575458642,9.83745991,186.47,186.43,4.448159]
[1736575458844,9.83745991,186.47,186.44,4.448159]
[1736575459141,2.682,186.47,186.45,4.448159]
[1736575459446,6.2696565,186.52,186.46,11.60391758]
[1736575459640,13.42511641,186.52,186.47,4.44845767]
[1736575459841,13.42511641,186.52,186.48,4.44845767]
[1736575460046,13.42511641,186.52,186.46,7.15545991]
[1736575460344,13.42511641,186.52,186.47,4.44749325]
[1736575460544,13.42511641,186.52,186.48,4.44749325]
[1736575460745,13.42511641,186.52,186.46,7.15545991]
[1736575460944,13.42511641,186.52,186.47,4.44814092]
[1736575461144,2.6815,186.51,186.48,4.44814092]
[1736575461344,2.6815,186.51,186.46,9.83755991]
[1736575461545,2.6815,186.51,186.47,4.44814282]
[1736575461747,2.6815,186.51,186.48,4.44814282]
[1736575461947,2.6815,186.51,186.46,9.83755991]
[1736575462147,2.6815,186.51,186.47,4.44823792]
[1736575462347,2.6815,186.51,186.48,4.44823792]
[1736575462547,2.6815,186.51,186.46,9.83755991]
[1736575462847,2.6815,186.51,186.47,4.44770003]
[1736575463048,2.6815,186.51,186.48,4.44770003]
[1736575463349,2.6815,186.51,186.46,7.15545991]
[1736575463545,6.2696565,186.52,186.48,7.15545991]
[1736575464245,6.2696565,186.52,186.49,4.44619469]
[1736575464445,7.15545991,186.54,186.48,7.15545991]
[1736575464645,7.15545991,186.54,186.49,4.44525749]
[1736575464948,7.15545991,186.54,186.48,7.15545991]
[1736575465151,2.6813,186.52,186.49,4.44491253]
[1736575465346,2.6813,186.52,186.48,7.15545991]
[1736575465649,2.6813,186.52,186.49,4.44392116]
[1736575465849,2.6813,186.52,186.48,7.15545991]
[1736575466046,2.6813,186.52,186.49,4.44440105]
[1736575466247,2.6813,186.52,186.48,7.15545991]
[1736575466951,2.681,186.55,186.5,9.83705991]
[1736575467150,205.38685991,186.57,186.5,7.15545991]
[1736575467939,205.38685991,186.57,186.51,4.44467442]
[1736575468144,10.38685991,186.57,186.51,2.6814]
[1736575469047,2.6809,186.56,186.51,2.6814]
[1736575469746,9.83635991,186.56,186.51,2.6814]
[1736575472853,2.6809,186.55,186.51,2.6814]
[1736575476058,2.6809,186.55,186.5,9.83705991]
[1736575481262,2.6809,186.55,186.51,4.43930896]
[1736575481561,2.6809,186.55,186.51,2.6814]
[1736575483961,2.6806,186.57,186.53,2.6811]
[1736575485168,2.6806,186.57,186.52,9.83675991]
[1736575485367,2.6806,186.57,186.53,4.44051578]
[1736575485569,2.6809,186.55,186.5,7.15545991]
[1736575485764,2.6809,186.55,186.51,4.44129207]
[1736575485964,2.6809,186.55,186.52,4.44119931]
[1736575486266,2.6809,186.55,186.5,9.83705991]
[1736575486461,9.83605991,186.57,186.52,9.83675991]
[1736575486663,9.83605991,186.57,186.53,4.44132089]
[1736575486862,9.83605991,186.57,186.52,9.83675991]
[1736575487063,9.83605991,186.57,186.53,4.44131922]
[1736575487263,9.83605991,186.57,186.52,9.83675991]
[1736575487461,9.83605991,186.57,186.53,4.44238116]
[1736575487665,9.83605991,186.57,186.52,9.83675991]
[1736575487864,2.6806,186.57,186.53,4.44256646]
[1736575488064,2.6806,186.57,186.52,9.83675991]
[1736575488266,2.6806,186.57,186.53,4.44318663]
[1736575488566,2.6806,186.57,186.52,9.83675991]
[1736575488766,2.6806,186.57,186.53,4.44321647]
[1736575488965,2.6806,186.57,186.52,9.83675991]
[1736575489166,2.6806,186.57,186.53,7.12414084]
[1736575489369,2.6805,186.58,186.53,2.6811]
[1736575490571,2.6805,186.58,186.54,4.44259976]
[1736575490872,2.6805,186.58,186.53,2.6811]
[1736575491172,2.6805,186.58,186.54,4.44258382]
[1736575491366,2.6805,186.58,186.53,2.6811]
[1736575491560,2.6805,186.58,186.54,4.44274331]
[1736575491762,2.6805,186.58,186.53,2.6811]
[1736575492771,2.6805,186.58,186.54,4.44306232]
[1736575492968,2.6805,186.58,186.53,2.6811]
[1736575493267,2.6805,186.58,186.54,4.44568408]
[1736575493471,2.6805,186.58,186.53,2.6811]
[1736575494165,2.6805,186.58,186.54,4.44718969]
[1736575494367,2.6805,186.58,186.53,2.6811]
[1736575494568,2.6805,186.58,186.54,4.44717211]
[1736575494769,2.6805,186.58,186.53,2.6811]
[1736575495074,2.6805,186.58,186.54,4.44699958]
[1736575495275,2.6805,186.58,186.53,2.6811]